[Event "XVI Memorial Lezcano Montalvo 2024"]
[Site "Gran Canaria"]
[Date "2024.03.26"]
[Round "4.4"]
[White "Perez Guerra, Raul"]
[Black "Lianes Garcia, Marcos"]
[Result "1/2-1/2"]
[ECO "B29"]
[WhiteElo "2250"]
[BlackElo "2398"]
[Annotator "TA"]
[PlyCount "40"]
[EventDate "2024.03.23"]
[EventType "swiss"]
[EventCountry "ESP"]
[SourceTitle "playchess.com"]
[Source "ChessBase"]
[SourceQuality "1"]
[TimeControl "5400+30"]

{[%evp 9,40,6,20,31,33,20,12,6,3,5,16,7,6,13,11,12,8,11,25,26,35,35,84,91,97,0,0,0,95,0,18,0,97]} 1. e4 {[%emt 0:00:14]} c5 {[%emt 0:01:13]} 2. Nf3 {[%emt 0:01:16]} Nf6 {[%emt 0:02:59][%cal Bg8f6,Bf6d5,Bd5b6,Bb6d7][%mdl 32]} 3. Nc3 {[%emt 0:00:30]} d5 {[%emt 0:01:18]} 4. exd5 {[%emt 0:04:18]} Nxd5 {[%emt 0:00:10]} 5. Bc4 {[%emt 0:00:12]} Nb6 {[%emt 0:10:11]} 6. Bb5+ {[%emt 0:00:45]} Bd7 {[%emt 0:03:13]} 7. Bxd7+ {[%emt 0:04:04]} Qxd7 {[%emt 0:01:14]} 8. d4 {[%emt 0:00:05]} cxd4 {[%emt 0:05:21]} 9. Qxd4 {[%emt 0:00:38]} Nc6 {[%emt 0:09:05]} 10. Qxd7+ {[%emt 0:00:07]} Nxd7 {[%emt 0:00:14]} 11. Be3 {[%emt 0:02:01]} e6 {[%emt 0:12:31]} 12. O-O-O {[%emt 0:01:39]} Bc5 {[%emt 0:04:50]} 13. Rhe1 {[%emt 0:02:13]} Rd8 {[%emt 0:05:24]} 14. Ne4 {[%emt 0:04:45]} Bxe3+ {[%emt 0:09:47]} 15. Rxe3 {[%emt 0:00:01] Strongly threatening Nd6+.} Ke7 {[%emt 0:02:18]} (15... O-O $14 {is superior.}) 16. Nd6 $16 {[%emt 0:03:16] White has more active pieces.} b6 {[%emt 0:02:15][%cal Od7e5] [#]} 17. Nf5+ {[%emt 0:07:44]} (17. Nxf7 $1 $16 Kxf7 18. Ng5+ Kf6 19. Nxe6) 17... Kf6 $11 {[%emt 0:00:22]} 18. Nd6 {[%emt 0:00:04]} (18. N5d4 $11 Ndb8 19. Rc3 Nxd4 20. Rxd4 (20. Nxd4 Rhe8 $18)) 18... Ke7 $16 {[%emt 0:01:35][%cal Od7e5] [#]} 19. Nf5+ {[%emt 0:02:45]} (19. Nxf7 $1 $16 Kxf7 20. Ng5+ Kf6 21. Nxe6) 19... Kf6 $11 {[%emt 0:00:23]} 20. Nd6 {[%emt 0:00:05]} (20. N5d4 $11 Ndb8 21. Rc3) 20... Ke7 {[%emt 0:26:07] Weighted Error Value: White=0.17 (very precise) /Black=0.05 (flawless) .  Mistake:       	White=4     	Black=1      OK:         	White=5     	Black=10     Best:        	White=1     	---} 1/2-1/2

[Event "XVI Memorial Lezcano Montalvo 2024"]
[Site "Gran Canaria"]
[Date "2024.03.26"]
[Round "4.5"]
[White "Kovchan, Alexander"]
[Black "Marrero Rodriguez, Jorge"]
[Result "1-0"]
[ECO "C80"]
[WhiteElo "2477"]
[BlackElo "2177"]
[Annotator "TA"]
[PlyCount "79"]
[EventDate "2024.03.23"]
[EventType "swiss"]
[EventCountry "ESP"]
[SourceTitle "playchess.com"]
[Source "ChessBase"]
[SourceQuality "1"]
[TimeControl "5400+30"]

{[%evp 26,79,0,0,0,0,0,0,8,1,50,52,97,102,91,104,95,108,193,204,203,205,206,206,220,235,229,238,232,230,258,258,262,229,237,225,241,234,253,258,287,260,285,293,298,183,271,271,304,276,259,264,1566,1568,1934,1668]} 1. e4 {[%emt 0:00:05]} e5 {[%emt 0:00:12]} 2. Nf3 {[%emt 0:00:05]} Nc6 {[%emt 0:00:04]} 3. Bb5 {[%emt 0:00:15][%cal Bf1b5,Bb5a4,Ba4b3][%mdl 32]} a6 {[%emt 0:00:35]} 4. Ba4 {[%emt 0:00:09]} Nf6 {[%emt 0:00:18]} 5. O-O {[%emt 0:00:16]} Nxe4 {[%emt 0:00:11]} 6. d4 {[%emt 0:00:36]} b5 {[%emt 0:00:08]} 7. Bb3 {[%emt 0:00:08]} d5 {[%emt 0:00:04]} 8. dxe5 {[%emt 0:00:24]} Be6 {[%emt 0:00:05]} 9. Nbd2 {[%emt 0:01:11]} Nc5 {[%emt 0:00:29]} 10. c3 {[%emt 0:00:49]} d4 {[%emt 0:00:13]} 11. Bxe6 {[%emt 0:01:43]} Nxe6 {[%emt 0:00:11]} 12. cxd4 {[%emt 0:01:16]} Ncxd4 {[%emt 0:00:07]} 13. Nxd4 {[%emt 0:00:38]} Qxd4 {[%emt 0:03:31]} 14. Qf3 {[%emt 0:01:10]} Rd8 {[%emt 0:01:35][%cal Of8e7]} 15. Qc6+ {[%emt 0:00:32]} Qd7 {[%emt 0:00:03]} 16. Qxa6 {[%emt 0:00:19]} Qd5 {[%emt 0:00:17][%cal Od8a8] Prevents Ne4. aiming for ...Ra8! The position is equal.} 17. Qa5 {[%emt 0:05:48]} Nd4 {[%emt 0:05:17]} (17... Qxe5 $11 18. a4 Be7) 18. Nb3 $1 $14 {[%emt 0:14:04] Black must now prevent Nxd4.} Nc6 {[%emt 0:16:12]} 19. Qxc7 {[%emt 0:02:48] Strongly threatening Be3.} Nxe5 {[%emt 0:00:20]} 20. Bf4 {[%emt 0:11:49]} Bd6 {[%emt 0:02:03]} 21. Qc3 {[%emt 0:00:33]} b4 {[%emt 0:17:15]} (21... O-O $16) 22. Qg3 $18 {[%emt 0:13:18]} O-O {[%emt 0:01:20]} 23. Rad1 {[%emt 0:04:01]} Qe4 {[%emt 0:00:10][%cal Oe5f3]} 24. Rd4 {[%emt 0:02:35]} (24. Rde1 Nf3+ 25. gxf3 Qxf4 $14) 24... Qe2 {[%emt 0:00:39] [#]} 25. Rxd6 {[%emt 0:03:12][%mdl 512]} Rxd6 {[%emt 0:00:24]} 26. Bxe5 {[%emt 0:00:07]} Rg6 {[%emt 0:00:03]} 27. Qe3 {[%emt 0:01:32]} Qa6 {[%emt 0:00:05]} 28. Qd4 {[%emt 0:01:59]} Qb5 {[%emt 0:04:26]} 29. Bg3 {[%emt 0:01:45][%cal Be5g3,Bg3f4,Bf4e3][%mdl 32]} Re8 {[%emt 0:01:21]} 30. Nc1 {[%emt 0:00:46]} Rc6 {[%emt 0:00:57][%cal Ob5f1,Bg6c6,Bc6c4,Bc4c2][%mdl 32]} 31. Bf4 {[%emt 0:03:25]} Rc4 {[%emt 0:02:21]} 32. Qd3 {[%emt 0:00:45]} Qc6 {[%emt 0:00:38]} 33. Be3 {[%emt 0:01:03]} Rc2 {[%emt 0:01:02]} 34. Qb3 {[%emt 0:00:57]} h5 {[%emt 0:00:15][%cal Bh7h5,Bh5h4,Bh4h3][%mdl 32]} 35. a3 {[%emt 0:07:07][%cal Ba2a3,Ba3b4,Bb4b5][%mdl 32]} (35. Qxb4 $2 Rxe3 36. Nb3 Re4 $17) 35... Re4 {[%emt 0:05:10]} (35... bxa3 {was worth a try.} 36. Qxa3 (36. bxa3 Qc3 $18) 36... Re6) 36. axb4 {[%emt 0:04:56] Hoping for b5.} Rg4 {[%emt 0:05:43]} 37. g3 {[%emt 0:00:02]} h4 {[%emt 0:00:34] [#] ( -> ...hxg3)} 38. b5 $1 {[%emt 0:00:02]} Qf3 {[%emt 0:00:09]} (38... Qg6 39. Ba7 (39. Nd3 $2 hxg3 $19) 39... Rgc4) 39. Qxc2 {[%emt 0:00:33]} h3 {[%emt 0:00:42]} 40. Qc6 {[%emt 0:00:26] Black got outplayed after the opening.   Weighted Error Value: White=0.08 (flawless) /Black=0.20 (precise) .  Mistake:       	---       	Black=4      Inaccurate:     	White=1     	Black=1      OK:         	White=17    	Black=8      Best:        	White=3     	Black=2      Strong:       	White=2     	---} ({Avoid the trap} 40. Qc8+ $2 Kh7 $19) 1-0

[Event "XVI Memorial Lezcano Montalvo 2024"]
[Site "Gran Canaria"]
[Date "2024.03.26"]
[Round "4.6"]
[White "Tytynnik, Artem"]
[Black "Kurajica, Bojan"]
[Result "0-1"]
[ECO "E04"]
[WhiteElo "2197"]
[BlackElo "2444"]
[Annotator "RC"]
[PlyCount "150"]
[EventDate "2024.03.23"]
[EventType "swiss"]
[EventCountry "ESP"]
[SourceTitle "playchess.com"]
[Source "ChessBase"]
[SourceQuality "1"]
[TimeControl "5400+30"]

1. d4 {[%emt 0:00:03]} Nf6 {[%emt 0:00:58]} 2. c4 {[%emt 0:00:19]} e6 {[%emt 0:00:05]} 3. g3 {[%emt 0:00:03]} d5 {[%emt 0:00:18]} 4. Nf3 {[%emt 0:00:10]} a6 {[%emt 0:01:00]} 5. Bg2 {[%emt 0:00:53]} dxc4 {[%emt 0:00:15]} 6. Ne5 {[%emt 0:04:56]} Bb4+ {[%emt 0:01:52]} 7. Nc3 {[%emt 0:00:32]} Nd5 {[%emt 0:00:41]} 8. Bd2 {[%emt 0:03:08]} Nb6 {[%emt 0:10:02]} 9. e3 {[%emt 0:03:46]} N8d7 {[%emt 0:00:46]} 10. Qh5 {[%emt 0:07:39]} O-O {[%emt 0:05:24]} 11. Ne4 {[%emt 0:03:58]} Qe7 {[%emt 0:16:52]} 12. a3 {[%emt 0:03:37]} Bxd2+ {[%emt 0:06:26]} 13. Nxd2 {[%emt 0:00:11]} Nxe5 {[%emt 0:05:37]} 14. Qxe5 {[%emt 0:03:00]} f6 {[%emt 0:02:56]} 15. Qa5 {[%emt 0:03:25]} e5 {[%emt 0:11:03]} 16. dxe5 {[%emt 0:03:55]} Bf5 {[%emt 0:02:59]} 17. e4 {[%emt 0:07:40]} Bg6 {[%emt 0:03:55]} 18. O-O {[%emt 0:17:44]} fxe5 {[%emt 0:01:20]} 19. Rac1 {[%emt 0:04:17]} Bf7 {[%emt 0:00:18]} 20. Rfd1 {[%emt 0:00:52]} Rad8 {[%emt 0:01:56]} 21. Nf1 {[%emt 0:02:54]} Rd4 {[%emt 0:09:51]} 22. Ne3 {[%emt 0:00:42]} Rfd8 {[%emt 0:01:26]} 23. Bf3 {[%emt 0:01:34]} Bg6 {[%emt 0:04:05]} 24. Rxd4 {[%emt 0:05:57]} Rxd4 {[%emt 0:00:26]} 25. Be2 {[%emt 0:06:29]} Bxe4 {[%emt 0:01:48]} 26. Nxc4 {[%emt 0:01:56]} Nxc4 {[%emt 0:00:27]} 27. Bxc4+ {[%emt 0:00:27]} Kh8 {[%emt 0:00:15]} 28. Bf1 {[%emt 0:01:10]} Bc6 {[%emt 0:00:48]} 29. Re1 {[%emt 0:00:28]} Rd5 {[%emt 0:00:40]} 30. Qc3 {[%emt 0:00:28]} Rc5 {[%emt 0:00:58]} 31. Qe3 {[%emt 0:01:06]} Qd6 {[%emt 0:03:10]} 32. Bg2 {[%emt 0:02:21]} Bxg2 {[%emt 0:00:09]} 33. Kxg2 {[%emt 0:00:04]} h6 {[%emt 0:00:06]} 34. b4 {[%emt 0:00:39]} Rd5 {[%emt 0:00:05]} 35. Qf3 {[%emt 0:03:07]} b6 {[%emt 0:02:31]} 36. h4 {[%emt 0:01:35]} a5 {[%emt 0:00:26]} 37. Qg4 {[%emt 0:03:33]} axb4 {[%emt 0:01:17]} 38. axb4 {[%emt 0:00:03]} Rd4 {[%emt 0:00:34]} 39. Qc8+ {[%emt 0:00:12]} Kh7 {[%emt 0:00:07]} 40. Qf5+ {[%emt 0:00:13]} Qg6 {[%emt 0:00:15]} 41. Qxe5 {[%emt 0:01:40]} Rxh4 {[%emt 0:00:19]} 42. b5 {[%emt 0:03:33]} Rh5 {[%emt 0:01:28]} 43. Qxc7 {[%emt 0:00:56]} Rxb5 {[%emt 0:00:06]} 44. Qc8 {[%emt 0:00:34]} Rc5 {[%emt 0:00:12]} 45. Qd8 {[%emt 0:00:22]} Qc6+ {[%emt 0:01:32]} 46. Kg1 {[%emt 0:00:00]} Rd5 {[%emt 0:00:32]} 47. Qe7 {[%emt 0:01:04]} Rh5 {[%emt 0:00:49]} 48. Qe4+ {[%emt 0:00:24]} Qxe4 {[%emt 0:00:09]} 49. Rxe4 {[%emt 0:00:01]} Rb5 {[%emt 0:01:33]} 50. Kf1 {[%emt 0:00:39]} Rb2 {[%emt 0:00:29]} 51. Re6 {[%emt 0:00:27]} b5 {[%emt 0:00:24]} 52. Rb6 {[%emt 0:00:41]} b4 {[%emt 0:00:44]} 53. Ke1 {[%emt 0:00:50]} h5 {[%emt 0:01:17]} 54. Rb5 {[%emt 0:00:29]} Kh6 {[%emt 0:00:32]} 55. Kf1 {[%emt 0:00:28]} b3 {[%emt 0:00:25]} 56. Ke1 {[%emt 0:00:18]} Rb1+ {[%emt 0:00:32]} 57. Kd2 {[%emt 0:00:07]} g5 {[%emt 0:01:16]} 58. Rb6+ {[%emt 0:00:08]} Kg7 {[%emt 0:00:04]} 59. Rb7+ {[%emt 0:00:54]} Kf6 {[%emt 0:00:09]} 60. Rb5 {[%emt 0:00:26]} Kg6 {[%emt 0:00:35]} 61. f4 {[%emt 0:00:40]} gxf4 {[%emt 0:01:39]} 62. gxf4 {[%emt 0:00:01]} b2 {[%emt 0:00:37]} 63. Rg5+ {[%emt 0:00:34]} Kh6 {[%emt 0:00:15]} 64. Kc2 {[%emt 0:00:09]} Rf1 {[%emt 0:00:10]} 65. Kxb2 {[%emt 0:00:04]} Rxf4 {[%emt 0:00:05]} 66. Rc5 {[%emt 0:01:48]} h4 {[%emt 0:01:28]} 67. Kc2 {[%emt 0:01:01]} h3 {[%emt 0:00:23]} 68. Kd3 {[%emt 0:00:13]} h2 {[%emt 0:00:52]} 69. Rc1 {[%emt 0:00:14]} Rh4 {[%emt 0:00:19]} 70. Rh1 {[%emt 0:00:01]} Kg5 {[%emt 0:00:18]} 71. Ke3 {[%emt 0:00:03]} Kg4 {[%emt 0:00:30]} 72. Kf2 {[%emt 0:00:42]} Kh3 {[%emt 0:00:18]} 73. Rc1 {[%emt 0:01:13]} Rf4+ {[%emt 0:00:13]} 74. Ke3 {[%emt 0:00:08]} Rg4 {[%emt 0:00:14]} 75. Kf2 {[%emt 0:00:07]} Rg2+ {[%emt 0:00:11]} 0-1

[Event "XVI Memorial Lezcano Montalvo 2024"]
[Site "Gran Canaria"]
[Date "2024.03.26"]
[Round "4.7"]
[White "Omelja, Artem"]
[Black "Akhvlediani, Irakli"]
[Result "1/2-1/2"]
[ECO "A73"]
[WhiteElo "2438"]
[BlackElo "2356"]
[Annotator "TA"]
[PlyCount "54"]
[EventDate "2024.03.23"]
[EventType "swiss"]
[EventCountry "ESP"]
[SourceTitle "playchess.com"]
[Source "ChessBase"]
[SourceQuality "1"]
[TimeControl "5400+30"]

{[%evp 20,54,43,31,56,27,44,0,-7,-9,-17,-20,27,-10,-18,-16,-19,-20,-11,-48,-73,-81,-67,-66,0,-59,-61,-63,-33,-30,-53,-51,-57,-51,-28,-26,-22]} 1. d4 {[%emt 0:00:14]} Nf6 {[%emt 0:00:05]} 2. c4 {[%emt 0:00:19]} e6 {[%emt 0:00:06]} 3. Nf3 {[%emt 0:01:14]} c5 {[%emt 0:00:15]} 4. d5 {[%emt 0:00:18]} d6 {[%emt 0:00:06]} 5. Nc3 {[%emt 0:00:20]} exd5 {[%emt 0:00:08]} 6. cxd5 {[%emt 0:00:08]} g6 {[%emt 0:00:02]} 7. Nd2 {[%emt 0:00:25]} Bg7 {[%emt 0:00:04]} 8. e4 {[%emt 0:00:10]} O-O {[%emt 0:00:08]} 9. Be2 {[%emt 0:00:11]} Na6 {[%emt 0:00:05]} 10. O-O {[%emt 0:00:22]} Nc7 {[%emt 0:00:01]} 11. a4 {[%emt 0:01:16]} a6 {[%emt 0:00:05]} 12. h3 {[%emt 0:14:38]} Re8 {[%emt 0:02:32]} 13. Qc2 {[%emt 0:02:44]} (13. Re1 $14) 13... Rb8 $11 {[%emt 0:00:28] The position is equal.} ({Don't play} 13... Nfxd5 14. exd5 Bxc3 15. Qxc3 $16) 14. Nc4 {[%emt 0:05:26][%cal Bd2c4,Bc4a5,Ba5c6][%mdl 32]} b5 {[%emt 0:04:29]} 15. axb5 {[%emt 0:00:37]} Nxb5 {[%emt 0:17:35]} (15... axb5 $142 16. Na5 Bb7) 16. Nxb5 {[%emt 0:02:53]} axb5 {[%emt 0:00:04]} 17. Na5 {[%emt 0:00:14]} Bd7 {[%emt 0:00:52]} ({Of course not} 17... Nxe4 $6 18. Nc6 Qc7 19. Nxb8 Qxb8 20. g4 $14) 18. Bf3 {[%emt 0:04:22]} Qe7 {[%emt 0:02:40][%cal Rf6e4]} 19. Bg5 {[%emt 0:19:38]} Qe5 {[%emt 0:06:25]} 20. Bxf6 {[%emt 0:00:16]} Qxf6 {[%emt 0:00:34]} 21. Nc6 $1 {[%emt 0:02:30]} Rbc8 {[%emt 0:23:57]} (21... Bxc6 $15 22. dxc6 Qxb2 23. Qxb2 Bxb2) 22. e5 {[%emt 0:11:49]} dxe5 $15 {[%emt 0:00:09]} 23. Qxc5 {[%emt 0:01:10]} e4 {[%emt 0:05:51]} 24. Bg4 {[%emt 0:00:17]} Bxg4 {[%emt 0:00:57]} 25. hxg4 {[%emt 0:00:08]} Bf8 $1 {[%emt 0:00:18] Repels d6} 26. Qe3 {[%emt 0:06:40]} Bd6 {[%emt 0:04:01]} 27. g3 $1 {[%emt 0:03:51] Repels Qh4} Qxb2 {[%emt 0:12:07] Weighted Error Value: White=0.14 (very precise) /Black=0.15 (very precise) .  Mistake:       	White=2     	Black=2      Inaccurate:     	White=3     	Black=1      OK:         	White=6     	Black=5      Best:        	---       	Black=2      Strong:       	White=2     	Black=1} 1/2-1/2

[Event "XVI Memorial Lezcano Montalvo 2024"]
[Site "Gran Canaria"]
[Date "2024.03.26"]
[Round "4.8"]
[White "Yankelevich, Lev"]
[Black "Hernando Rodrigo, Jose Maria"]
[Result "1-0"]
[ECO "D28"]
[WhiteElo "2412"]
[BlackElo "2257"]
[Annotator "RC"]
[PlyCount "51"]
[EventDate "2024.03.23"]
[EventType "swiss"]
[EventCountry "ESP"]
[SourceTitle "playchess.com"]
[Source "ChessBase"]
[SourceQuality "1"]
[TimeControl "5400+30"]

1. d4 {[%emt 0:00:05]} d5 {[%emt 0:00:21]} 2. c4 {[%emt 0:00:12]} dxc4 {[%emt 0:00:24]} 3. Nf3 {[%emt 0:00:35]} Nf6 {[%emt 0:00:11]} 4. e3 {[%emt 0:00:06]} c5 {[%emt 0:00:44]} 5. Bxc4 {[%emt 0:00:16]} e6 {[%emt 0:00:05]} 6. O-O {[%emt 0:00:20]} a6 {[%emt 0:00:30]} 7. Qe2 {[%emt 0:04:56]} Nc6 {[%emt 0:00:46]} 8. Rd1 {[%emt 0:00:58]} Qc7 {[%emt 0:00:21]} 9. Nc3 {[%emt 0:03:56]} Bd6 {[%emt 0:03:14]} 10. dxc5 {[%emt 0:08:55]} Bxc5 {[%emt 0:00:12]} 11. Bd2 {[%emt 0:01:36]} O-O {[%emt 0:05:48]} 12. Rac1 {[%emt 0:00:07]} Qe7 {[%emt 0:00:56]} 13. e4 {[%emt 0:14:26]} Ng4 {[%emt 0:09:25]} 14. Be1 {[%emt 0:00:45]} Qf6 {[%emt 0:01:34]} 15. Bb3 {[%emt 0:10:25]} Qf4 {[%emt 0:03:12]} 16. Qd2 {[%emt 0:18:40]} Qb8 {[%emt 0:17:18]} 17. Qg5 {[%emt 0:01:41]} Nge5 {[%emt 0:16:44]} 18. Nxe5 {[%emt 0:00:08]} Nxe5 {[%emt 0:00:04]} 19. Na4 {[%emt 0:07:24]} h6 {[%emt 0:04:04]} 20. Qg3 {[%emt 0:00:20]} Ba7 {[%emt 0:12:09]} 21. Bb4 {[%emt 0:00:10]} Bd7 {[%emt 0:00:06]} 22. Bd6 {[%emt 0:00:27]} Qe8 {[%emt 0:00:03]} 23. Bxe5 {[%emt 0:00:40]} f6 {[%emt 0:00:42]} 24. Bd6 {[%emt 0:00:16]} Bxa4 {[%emt 0:00:46]} 25. Bxf8 {[%emt 0:00:24]} Kxf8 {[%emt 0:00:07]} 26. Rc7 {[%emt 0:00:34]} 1-0

[Event "XVI Memorial Lezcano Montalvo 2024"]
[Site "Gran Canaria"]
[Date "2024.03.26"]
[Round "4.9"]
[White "Van Zyl-Rudd, Jack"]
[Black "Barlov, Dragan"]
[Result "1/2-1/2"]
[ECO "E38"]
[WhiteElo "2264"]
[BlackElo "2387"]
[Annotator "RC"]
[PlyCount "106"]
[EventDate "2024.03.23"]
[EventType "swiss"]
[EventCountry "ESP"]
[SourceTitle "playchess.com"]
[Source "ChessBase"]
[SourceQuality "1"]
[TimeControl "5400+30"]

1. d4 {[%emt 0:10:50]} Nf6 {[%emt 0:02:53]} 2. c4 {[%emt 0:01:53]} e6 {[%emt 0:03:25]} 3. Nc3 {[%emt 0:00:06]} Bb4 {[%emt 0:00:08]} 4. Qc2 {[%emt 0:00:05]} c5 {[%emt 0:02:36]} 5. dxc5 {[%emt 0:00:08]} Bxc5 {[%emt 0:00:24]} 6. Nf3 {[%emt 0:00:06]} Qb6 {[%emt 0:00:41]} 7. e3 {[%emt 0:00:09]} O-O {[%emt 0:03:32]} 8. a3 {[%emt 0:00:45]} Be7 {[%emt 0:00:38]} 9. e4 {[%emt 0:04:23]} d6 {[%emt 0:02:52]} 10. Be2 {[%emt 0:00:58]} a6 {[%emt 0:01:49]} 11. O-O {[%emt 0:00:25]} Qc7 {[%emt 0:00:13]} 12. Bf4 {[%emt 0:08:18]} Nbd7 {[%emt 0:03:39]} 13. Rad1 {[%emt 0:05:58]} b6 {[%emt 0:08:41]} 14. b4 {[%emt 0:19:38]} Bb7 {[%emt 0:01:47]} 15. Qd3 {[%emt 0:01:05]} Ne5 {[%emt 0:11:18]} 16. Nxe5 {[%emt 0:00:12]} dxe5 {[%emt 0:00:01]} 17. Be3 {[%emt 0:00:26]} a5 {[%emt 0:12:21]} 18. Qb1 {[%emt 0:04:00]} axb4 {[%emt 0:00:32]} 19. axb4 {[%emt 0:00:01]} h6 {[%emt 0:11:49]} 20. Rd2 {[%emt 0:05:38]} Rfd8 {[%emt 0:06:43]} 21. Rfd1 {[%emt 0:02:47]} Rxd2 {[%emt 0:08:46]} 22. Rxd2 {[%emt 0:00:03]} Rd8 {[%emt 0:07:35]} 23. Rxd8+ {[%emt 0:00:23]} Qxd8 {[%emt 0:00:24]} 24. f3 {[%emt 0:01:04]} Qf8 {[%emt 0:00:36]} 25. Na2 {[%emt 0:06:30]} Nd7 {[%emt 0:00:45]} 26. Qd1 {[%emt 0:01:44]} Qc8 {[%emt 0:03:00]} 27. Qb3 {[%emt 0:06:08]} Qc7 {[%emt 0:01:10]} 28. Nc3 {[%emt 0:01:55]} Qd6 {[%emt 0:00:37]} 29. Na4 {[%emt 0:00:23]} Qxb4 {[%emt 0:00:45]} 30. Qxb4 {[%emt 0:00:05]} Bxb4 {[%emt 0:00:03]} 31. Nxb6 {[%emt 0:00:08]} Bc5 {[%emt 0:02:22]} 32. Bxc5 {[%emt 0:00:44]} Nxc5 {[%emt 0:00:01]} 33. Bd1 {[%emt 0:02:47]} Bc6 {[%emt 0:00:44]} 34. Nc8 {[%emt 0:02:30]} Kf8 {[%emt 0:00:14]} 35. Kf2 {[%emt 0:01:53]} Ke8 {[%emt 0:00:54]} 36. Ke3 {[%emt 0:00:48]} Kd7 {[%emt 0:02:13]} 37. Na7 {[%emt 0:00:10]} Kc7 {[%emt 0:00:40]} 38. Nxc6 {[%emt 0:00:11]} Kxc6 {[%emt 0:00:02]} 39. Kd2 {[%emt 0:00:59]} f5 {[%emt 0:02:20]} 40. exf5 {[%emt 0:00:05]} exf5 {[%emt 0:00:00]} 41. Bc2 {[%emt 0:00:16]} f4 {[%emt 0:00:36]} 42. g3 {[%emt 0:04:44]} g5 {[%emt 0:00:27]} 43. gxf4 {[%emt 0:02:47]} gxf4 {[%emt 0:00:01]} 44. Kc3 {[%emt 0:02:17]} Kb6 {[%emt 0:00:41]} 45. Bd1 {[%emt 0:01:29]} Ka5 {[%emt 0:01:17]} 46. Bc2 {[%emt 0:00:02]} Kb6 {[%emt 0:00:31]} 47. Bd1 {[%emt 0:00:09]} Kc6 {[%emt 0:00:38]} 48. Bc2 {[%emt 0:00:15]} Kc7 {[%emt 0:00:22]} 49. Bd1 {[%emt 0:01:45]} Kd6 {[%emt 0:00:12]} 50. Bc2 {[%emt 0:00:42]} Na6 {[%emt 0:00:26]} 51. Bf5 {[%emt 0:02:54]} Nc5 {[%emt 0:00:21]} 52. Bc2 {[%emt 0:00:07]} Kc6 {[%emt 0:00:24]} 53. Bd1 {[%emt 0:00:42]} Kb6 {[%emt 0:01:09]} 1/2-1/2

[Event "XVI Memorial Lezcano Montalvo 2024"]
[Site "Gran Canaria"]
[Date "2024.03.26"]
[Round "4.10"]
[White "Garcia Padron, Jose"]
[Black "Oudeh Mishmesh, Omar"]
[Result "0-1"]
[ECO "A01"]
[WhiteElo "2385"]
[BlackElo "2301"]
[Annotator "RC"]
[PlyCount "104"]
[EventDate "2024.03.23"]
[EventType "swiss"]
[EventCountry "ESP"]
[SourceTitle "playchess.com"]
[Source "ChessBase"]
[SourceQuality "1"]
[TimeControl "5400+30"]

1. b3 {[%emt 0:00:06]} e5 {[%emt 0:00:27]} 2. Bb2 {[%emt 0:00:07]} Nc6 {[%emt 0:00:11]} 3. e3 {[%emt 0:00:06]} Nf6 {[%emt 0:00:31]} 4. Bb5 {[%emt 0:00:08]} Bd6 {[%emt 0:02:05]} 5. Na3 {[%emt 0:01:11]} Na5 {[%emt 0:01:46]} 6. Be2 {[%emt 0:00:23]} a6 {[%emt 0:05:20]} 7. c4 {[%emt 0:01:35]} Nc6 {[%emt 0:03:30]} 8. Nc2 {[%emt 0:00:33]} Be7 {[%emt 0:04:38]} 9. d4 {[%emt 0:04:34]} exd4 {[%emt 0:02:39]} 10. exd4 {[%emt 0:00:08]} d5 {[%emt 0:00:09]} 11. Nf3 {[%emt 0:00:26]} O-O {[%emt 0:08:50]} 12. Ne5 {[%emt 0:02:10]} Ne4 {[%emt 0:14:52]} 13. f3 {[%emt 0:22:00]} Bb4+ {[%emt 0:11:37]} 14. Kf1 {[%emt 0:12:11]} Bc3 {[%emt 0:01:46]} 15. fxe4 {[%emt 0:08:54]} Bxb2 {[%emt 0:04:08]} 16. Nxc6 {[%emt 0:12:15]} Qf6+ {[%emt 0:00:34]} 17. Kg1 {[%emt 0:05:26]} Bxa1 {[%emt 0:03:59]} 18. Ne5 {[%emt 0:12:47]} Bc3 {[%emt 0:03:03]} 19. cxd5 {[%emt 0:00:12]} Re8 {[%emt 0:01:21]} 20. Bf3 {[%emt 0:08:00]} Bxd4+ {[%emt 0:01:59]} 21. Qxd4 {[%emt 0:00:07]} Qxe5 {[%emt 0:02:03]} 22. Kf2 {[%emt 0:00:07]} f5 {[%emt 0:06:22]} 23. Re1 {[%emt 0:04:39]} Qxd4+ {[%emt 0:04:14]} 24. Nxd4 {[%emt 0:00:04]} fxe4 {[%emt 0:00:07]} 25. Bxe4 {[%emt 0:00:05]} Bd7 {[%emt 0:00:41]} 26. Kf3 {[%emt 0:00:34]} Rf8+ {[%emt 0:01:16]} 27. Kg3 {[%emt 0:01:37]} Rae8 {[%emt 0:00:43]} 28. Ne6 {[%emt 0:00:10]} Bxe6 {[%emt 0:01:48]} 29. dxe6 {[%emt 0:00:04]} c6 {[%emt 0:01:16]} 30. b4 {[%emt 0:00:44]} Rf6 {[%emt 0:01:21]} 31. Bc2 {[%emt 0:00:16]} Kf8 {[%emt 0:00:20]} 32. Bb3 {[%emt 0:01:37]} Ke7 {[%emt 0:00:05]} 33. h4 {[%emt 0:00:19]} Rd8 {[%emt 0:00:11]} 34. Re4 {[%emt 0:00:41]} Rd2 {[%emt 0:00:37]} 35. Kh3 {[%emt 0:00:21]} g6 {[%emt 0:02:21]} 36. Rg4 {[%emt 0:00:57]} Rf5 {[%emt 0:00:27]} 37. Re4 {[%emt 0:00:33]} Rff2 {[%emt 0:01:30]} 38. Rg4 {[%emt 0:00:52]} Kf6 {[%emt 0:01:06]} 39. h5 {[%emt 0:00:52]} g5 {[%emt 0:01:09]} 40. h6 {[%emt 0:00:39]} Rd3+ {[%emt 0:01:24]} 41. Kh2 {[%emt 0:00:14]} Rf4 {[%emt 0:02:47]} 42. e7 {[%emt 0:01:58]} Re3 {[%emt 0:00:22]} 43. Rg3 {[%emt 0:00:22]} Rxe7 {[%emt 0:00:47]} 44. Rd3 {[%emt 0:00:11]} Rh4+ {[%emt 0:00:37]} 45. Kg3 {[%emt 0:00:02]} Rxh6 {[%emt 0:00:16]} 46. Kf3 {[%emt 0:00:10]} Rh4 {[%emt 0:00:14]} 47. a3 {[%emt 0:01:37]} Rf4+ {[%emt 0:00:10]} 48. Kg3 {[%emt 0:00:08]} h5 {[%emt 0:01:32]} 49. Rd6+ {[%emt 0:00:07]} Ke5 {[%emt 0:00:14]} 50. Rg6 {[%emt 0:00:06]} Rg4+ {[%emt 0:00:36]} 51. Kh3 {[%emt 0:00:07]} Kd4 {[%emt 0:00:21]} 52. Bd1 {[%emt 0:00:25]} Re3+ {[%emt 0:00:14]} 0-1